[Event "23rd ETCC Women 2021"]
[Site "Catez"]
[Date "2021.11.20"]
[Round "8.9"]
[White "Peng, Zhaoqin"]
[Black "Zawadzka, Jolanta"]
[Result "1/2-1/2"]
[ECO "E46"]
[WhiteElo "2351"]
[BlackElo "2429"]
[Annotator "NA"]
[PlyCount "120"]
[EventDate "2021.11.08"]
[EventType "team-tourn"]
[EventCountry "SLO"]
[SourceTitle "playchess.com"]
[Source "ChessBase"]
[SourceQuality "1"]
[WhiteTeam "Netherlands"]
[BlackTeam "Poland"]
[WhiteTeamCountry "NED"]
[BlackTeamCountry "POL"]
[TimeControl "40/5400+30:1800+30"]

1. d4 {[%emt 0:00:14]} Nf6 {[%emt 0:00:05]} 2. c4 {[%emt 0:00:32]} e6 {[%emt 0:
00:05]} 3. Nc3 {[%emt 0:00:38]} Bb4 {[%emt 0:00:06]} 4. e3 {[%emt 0:00:24]} O-O
{[%emt 0:00:39]} 5. Nge2 {[%emt 0:01:26]} Re8 {[%emt 0:00:25]} 6. a3 {[%emt 0:
04:44]} Bf8 {[%emt 0:00:06]} 7. b3 {[%emt 0:07:45]} d5 {[%emt 0:06:03]} 8. Bb2
{[%emt 0:01:12]} b6 {[%emt 0:01:15]} 9. g3 {[%emt 0:08:59]} Nc6 {[%emt 0:17:04]
} 10. Bg2 {[%emt 0:02:07]} Na5 {[%emt 0:03:26]} 11. cxd5 {[%emt 0:07:27]} exd5
{[%emt 0:00:22]} 12. O-O {[%emt 0:04:19]} Bf5 {[%emt 0:06:55]} 13. Nf4 {
[%emt 0:16:53]} c6 {[%emt 0:00:51]} 14. Na4 {[%emt 0:02:51]} Rc8 {[%emt 0:06:
05]} 15. Re1 {[%emt 0:02:22]} g6 {[%emt 0:06:55]} 16. Nd3 {[%emt 0:01:30]} h5 {
[%emt 0:03:26]} 17. Ne5 {[%emt 0:05:48]} Ng4 {[%emt 0:03:02]} 18. Nf3 {[%emt 0:
06:37]} Bh6 {[%emt 0:06:05]} 19. Nc3 {[%emt 0:00:36]} Nb7 {[%emt 0:08:44]} 20.
h3 {[%emt 0:03:07]} Nf6 {[%emt 0:00:41]} 21. Ne5 {[%emt 0:00:52]} Nd7 {[%emt 0:
02:14]} 22. e4 {[%emt 0:02:09]} dxe4 {[%emt 0:06:14]} 23. Nxe4 {[%emt 0:00:02]}
Bg7 {[%emt 0:05:28]} 24. f4 {[%emt 0:01:31]} f6 {[%emt 0:09:53]} 25. Nc4 {
[%emt 0:02:10]} Nf8 {[%emt 0:00:12]} 26. d5 {[%emt 0:02:00]} Bxe4 {[%emt 0:01:
45]} 27. Rxe4 {[%emt 0:00:57]} Rxe4 {[%emt 0:01:06]} 28. Bxe4 {[%emt 0:00:02]}
Nc5 {[%emt 0:01:20]} 29. Bg2 {[%emt 0:00:25]} cxd5 {[%emt 0:00:36]} 30. Bxd5+ {
[%emt 0:07:19]} Kh8 {[%emt 0:00:04]} 31. Ne3 {[%emt 0:03:45]} Qd7 {[%emt 0:01:
22]} 32. b4 {[%emt 0:02:29]} Re8 {[%emt 0:00:53]} 33. bxc5 {[%emt 0:01:08]}
Rxe3 {[%emt 0:00:24]} 34. Kf2 {[%emt 0:00:49]} Re7 {[%emt 0:00:32]} 35. cxb6 {
[%emt 0:00:00]} axb6 {[%emt 0:00:16]} 36. Bg2 {[%emt 0:00:25]} Qb5 {[%emt 0:00:
45]} 37. Rb1 {[%emt 0:00:58]} Rd7 {[%emt 0:00:20]} 38. Qc2 {[%emt 0:00:31]} Qa5
{[%emt 0:00:38]} 39. Rd1 {[%emt 0:01:21]} Rxd1 {[%emt 0:00:30]} 40. Qxd1 {
[%emt 0:00:30]} h4 {[%emt 0:01:32]} 41. gxh4 {[%emt 0:14:53]} Ne6 {[%emt 0:05:
40]} 42. Qd5 {[%emt 0:02:02]} Nxf4 {[%emt 0:08:33]} 43. Qxa5 bxa5 44. Bf1 {
[%emt 0:00:19]} f5 {[%emt 0:00:02]} 45. Bxg7+ {[%emt 0:02:39]} Kxg7 {[%emt 0:
00:46]} 46. Ke3 {[%emt 0:00:17]} Ne6 {[%emt 0:03:00]} 47. Kd3 {[%emt 0:00:14]}
Kf6 {[%emt 0:04:18]} 48. Kc4 {[%emt 0:00:11]} Ke5 {[%emt 0:02:37]} 49. Kb5 {
[%emt 0:06:19]} Kd4 {[%emt 0:06:02]} 50. Kxa5 {[%emt 0:03:11]} f4 {[%emt 0:05:
58]} 51. Kb6 {[%emt 0:03:52]} Nc5 {[%emt 0:00:00]} 52. Be2 {[%emt 0:01:26]}
Na4+ {[%emt 0:00:37]} 53. Ka5 {[%emt 0:01:22]} Ke3 {[%emt 0:00:44]} 54. h5 {
[%emt 0:00:18]} gxh5 {[%emt 0:00:00]} 55. Bxh5 {[%emt 0:00:01]} Nb2 {[%emt 0:
00:00]} 56. h4 {[%emt 0:01:27]} Nc4+ {[%emt 0:00:27]} 57. Kb4 {[%emt 0:00:19]}
Nxa3 {[%emt 0:00:07]} 58. Kxa3 {[%emt 0:00:52]} f3 {[%emt 0:00:02]} 59. Bxf3 {
[%emt 0:00:11]} Kf4 {[%emt 0:00:01]} 60. Kb4 {[%emt 0:00:33]} Kf5 {[%emt 0:00:
08]} 1/2-1/2

[Event "23rd ETCC Women 2021"]
[Site "Catez"]
[Date "2021.11.20"]
[Round "8.10"]
[White "Cyfka, Karina"]
[Black "Roebers, Eline"]
[Result "1-0"]
[ECO "A89"]
[WhiteElo "2416"]
[BlackElo "2304"]
[Annotator "NA"]
[PlyCount "89"]
[EventDate "2021.11.08"]
[EventType "team-tourn"]
[EventCountry "SLO"]
[SourceTitle "playchess.com"]
[Source "ChessBase"]
[SourceQuality "1"]
[WhiteTeam "Poland"]
[BlackTeam "Netherlands"]
[WhiteTeamCountry "POL"]
[BlackTeamCountry "NED"]
[TimeControl "40/5400+30:1800+30"]

1. d4 {[%emt 0:00:05]} f5 {[%emt 0:00:25]} 2. c4 {[%emt 0:00:14]} Nf6 {[%emt 0:
00:03]} 3. g3 {[%emt 0:00:50]} g6 {[%emt 0:00:21]} 4. Bg2 {[%emt 0:00:34]} Bg7
{[%emt 0:00:13]} 5. Nf3 {[%emt 0:00:57]} O-O {[%emt 0:00:05]} 6. Nc3 {[%emt 0:
01:11]} d6 {[%emt 0:00:09]} 7. O-O {[%emt 0:00:29]} Nc6 {[%emt 0:00:14]} 8. d5
{[%emt 0:00:51]} Na5 {[%emt 0:00:40]} 9. b3 {[%emt 0:00:46]} c5 {[%emt 0:00:59]
} 10. Bd2 {[%emt 0:00:29]} a6 {[%emt 0:02:25]} 11. Rb1 {[%emt 0:00:20]} Rb8 {
[%emt 0:07:52]} 12. a4 {[%emt 0:02:05]} Qe8 {[%emt 0:05:14]} 13. Re1 {[%emt 0:
08:18]} b6 {[%emt 0:01:55]} 14. Qc1 {[%emt 0:04:10]} Ng4 {[%emt 0:15:00]} 15.
h3 {[%emt 0:07:49]} Ne5 {[%emt 0:02:32]} 16. Ng5 {[%emt 0:04:04]} h6 {[%emt 0:
07:27]} 17. Ne6 {[%emt 0:00:32]} Bxe6 {[%emt 0:00:05]} 18. dxe6 {[%emt 0:00:06]
} Kh7 {[%emt 0:09:40]} 19. Bd5 {[%emt 0:14:47]} Nec6 {[%emt 0:02:55]} 20. Qd1 {
[%emt 0:01:19]} Qc8 {[%emt 0:04:00]} 21. e4 {[%emt 0:11:01]} f4 {[%emt 0:05:24]
} 22. gxf4 {[%emt 0:06:06]} Nd4 {[%emt 0:00:20]} 23. f5 {[%emt 0:03:38]} gxf5 {
[%emt 0:02:43]} 24. exf5 {[%emt 0:00:45]} Nxf5 {[%emt 0:01:44]} 25. Kh1 {
[%emt 0:02:58]} Nc6 {[%emt 0:06:51]} 26. Ne2 {[%emt 0:05:53]} Be5 {[%emt 0:05:
23]} 27. Rg1 {[%emt 0:07:44]} Qe8 {[%emt 0:05:11]} 28. Nf4 {[%emt 0:01:53]}
Bxf4 {[%emt 0:04:28]} 29. Bxf4 {[%emt 0:00:37]} Ncd4 {[%emt 0:00:31]} 30. Be3 {
[%emt 0:02:52]} Rf6 {[%emt 0:03:40]} 31. Bxd4 {[%emt 0:05:26]} Nxd4 {[%emt 0:
01:07]} 32. Qg4 {[%emt 0:01:06]} Qf8 {[%emt 0:01:16]} 33. Rg2 {[%emt 0:01:22]}
Kh8 {[%emt 0:02:50]} 34. Rbg1 {[%emt 0:04:19]} h5 {[%emt 0:03:07]} 35. Qxh5+ {
[%emt 0:01:35]} Qh6 {[%emt 0:00:22]} 36. Rg5 {[%emt 0:00:17]} Ne2 {[%emt 0:00:
33]} 37. Qg4 {[%emt 0:00:59]} Nxg1 {[%emt 0:00:19]} 38. Rh5 {[%emt 0:00:08]}
Rg8 {[%emt 0:00:43]} 39. Qh4 {[%emt 0:00:11]} Kg7 {[%emt 0:00:39]} 40. Rxh6 {
[%emt 0:00:18]} Rxh6 {[%emt 0:00:05]} 41. Qg5+ {[%emt 0:01:49]} Rg6 {[%emt 0:
01:27]} 42. Qxe7+ {[%emt 0:00:17]} Kh6 {[%emt 0:00:21]} 43. Qh4+ {[%emt 0:02:
08]} Kg7 {[%emt 0:00:05]} 44. Be4 {[%emt 0:00:30]} Rxe6 {[%emt 0:01:48]} 45.
Kxg1 {[%emt 0:03:22]} 1-0

[Event "23rd ETCC Women 2021"]
[Site "Catez"]
[Date "2021.11.20"]
[Round "8.11"]
[White "Ratsma, Rosa"]
[Black "Kiolbasa, Oliwia"]
[Result "1/2-1/2"]
[ECO "C84"]
[WhiteElo "2272"]
[BlackElo "2403"]
[Annotator "NA"]
[PlyCount "95"]
[EventDate "2021.11.08"]
[EventType "team-tourn"]
[EventCountry "SLO"]
[SourceTitle "playchess.com"]
[Source "ChessBase"]
[SourceQuality "1"]
[WhiteTeam "Netherlands"]
[BlackTeam "Poland"]
[WhiteTeamCountry "NED"]
[BlackTeamCountry "POL"]
[TimeControl "40/5400+30:1800+30"]

1. e4 {[%emt 0:00:04]} e5 {[%emt 0:00:12]} 2. Nf3 {[%emt 0:00:17]} Nc6 {
[%emt 0:00:10]} 3. Bb5 {[%emt 0:00:19]} a6 {[%emt 0:00:11]} 4. Ba4 {[%emt 0:00:
13]} Nf6 {[%emt 0:00:15]} 5. O-O {[%emt 0:00:18]} Be7 {[%emt 0:00:19]} 6. d3 {
[%emt 0:00:18]} b5 {[%emt 0:00:30]} 7. Bb3 {[%emt 0:00:06]} O-O {[%emt 0:00:29]
} 8. a4 {[%emt 0:00:39]} b4 {[%emt 0:00:59]} 9. a5 {[%emt 0:00:25]} Bc5 {
[%emt 0:08:42]} 10. Ba4 {[%emt 0:05:04]} Qe7 {[%emt 0:08:46]} 11. Bxc6 {
[%emt 0:07:02]} dxc6 {[%emt 0:00:08]} 12. Nbd2 {[%emt 0:04:38]} Rd8 {[%emt 0:
04:48]} 13. Qe2 {[%emt 0:04:08]} Bg4 {[%emt 0:17:07]} 14. h3 {[%emt 0:01:58]}
Bh5 {[%emt 0:12:56]} 15. Nc4 {[%emt 0:13:12]} Nd7 {[%emt 0:01:00]} 16. g4 {
[%emt 0:08:12]} Bg6 {[%emt 0:00:19]} 17. b3 {[%emt 0:03:43]} f6 {[%emt 0:02:33]
} 18. Ne3 {[%emt 0:02:20]} Nf8 {[%emt 0:06:52]} 19. Nf5 {[%emt 0:01:19]} Qf7 {
[%emt 0:01:46]} 20. Kh2 {[%emt 0:04:51]} Ne6 {[%emt 0:01:45]} 21. Rg1 {[%emt 0:
02:34]} Kh8 {[%emt 0:02:14]} 22. Be3 {[%emt 0:02:26]} Rab8 {[%emt 0:02:30]} 23.
Nd2 {[%emt 0:07:29]} Rb5 {[%emt 0:05:21]} 24. Nc4 {[%emt 0:02:34]} Bf8 {
[%emt 0:00:40]} 25. Qf3 {[%emt 0:07:55]} Qe8 {[%emt 0:00:54]} 26. Qg3 {[%emt 0:
01:57]} Bf7 {[%emt 0:01:36]} 27. Qh4 {[%emt 0:04:03]} Rd7 {[%emt 0:00:57]} 28.
Kh1 {[%emt 0:04:06]} Qd8 {[%emt 0:01:26]} 29. g5 {[%emt 0:01:56]} fxg5 {
[%emt 0:02:42]} 30. Bxg5 {[%emt 0:00:23]} Nxg5 {[%emt 0:01:26]} 31. Qxg5 {
[%emt 0:00:28]} Qxg5 {[%emt 0:02:42]} 32. Rxg5 {[%emt 0:00:07]} Bxc4 {[%emt 0:
01:15]} 33. bxc4 {[%emt 0:04:25]} Rb8 {[%emt 0:00:14]} 34. Ne3 {[%emt 0:02:10]}
b3 {[%emt 0:10:03]} 35. cxb3 {[%emt 0:00:48]} Rxd3 {[%emt 0:00:36]} 36. Rxe5 {
[%emt 0:00:29]} Bd6 {[%emt 0:00:39]} 37. Rf5 {[%emt 0:02:02]} Kg8 {[%emt 0:01:
50]} 38. e5 {[%emt 0:02:51]} Bc5 {[%emt 0:01:22]} 39. Kg2 {[%emt 0:01:27]} Bxe3
{[%emt 0:00:37]} 40. fxe3 {[%emt 0:00:07]} Rxe3 {[%emt 0:01:02]} 41. Rd1 {
[%emt 0:03:39]} h6 {[%emt 0:16:08]} 42. Rd7 {[%emt 0:09:21]} Rbxb3 {[%emt 0:01:
32]} 43. Rff7 {[%emt 0:00:26]} Rb2+ {[%emt 0:02:58]} 44. Kf1 {[%emt 0:00:40]}
Rxh3 {[%emt 0:03:25]} 45. Rxg7+ {[%emt 0:00:23]} Kf8 {[%emt 0:00:17]} 46. Rgf7+
{[%emt 0:02:41]} Ke8 {[%emt 0:00:50]} 47. Rfe7+ {[%emt 0:00:44]} Kf8 {[%emt 0:
00:08]} 48. Rf7+ {[%emt 0:00:27]} 1/2-1/2

[Event "23rd ETCC Women 2021"]
[Site "Catez"]
[Date "2021.11.20"]
[Round "8.13"]
[White "Lazarne Vajda, Szidonia"]
[Black "Mammadzada, Gunay"]
[Result "1/2-1/2"]
[ECO "D13"]
[WhiteElo "2345"]
[BlackElo "2459"]
[Annotator "ChessBase"]
[PlyCount "131"]
[EventDate "2021.11.08"]
[EventType "team-tourn"]
[EventCountry "SLO"]
[SourceTitle "playchess.com"]
[Source "ChessBase"]
[SourceQuality "1"]
[WhiteTeam "Hungary"]
[BlackTeam "Azerbaijan"]
[WhiteTeamCountry "HUN"]
[BlackTeamCountry "AZE"]
[TimeControl "40/5400+30:1800+30"]

1. d4 d5 2. Bf4 Nf6 3. e3 e6 4. Nf3 Bd6 5. Bxd6 Qxd6 6. c4 O-O 7. Nc3 c6 8. Bd3
Nbd7 9. O-O e5 10. dxe5 Nxe5 11. cxd5 {[%emt 0:05:10]} cxd5 {[%emt 0:24:19]}
12. Be2 {[%emt 0:00:30]} a6 {[%emt 0:00:30]} 13. Qd4 {[%emt 0:00:30]} Nc6 {
[%emt 0:00:30]} 14. Qd3 {[%emt 0:00:30]} Be6 {[%emt 0:00:30]} 15. Rfd1 {
[%emt 0:00:30]} Rad8 {[%emt 0:00:30]} 16. Rac1 {[%emt 0:00:30]} h6 {[%emt 0:00:
30]} 17. h3 {[%emt 0:00:30]} Qd7 {[%emt 0:00:30]} 18. Bf1 {[%emt 0:00:30]} Qe7
{[%emt 0:47:37]} 19. a3 {[%emt 0:56:53]} Bc8 {[%emt 0:01:21]} 20. Ne2 {[%emt 0:
02:04]} Rd6 {[%emt 0:06:22]} 21. Ng3 {[%emt 0:07:20]} Rfd8 {[%emt 0:09:53]} 22.
Nd4 {[%emt 0:02:22]} g6 {[%emt 0:02:57]} 23. Nxc6 {[%emt 0:02:21]} bxc6 {
[%emt 0:00:01]} 24. Qd4 {[%emt 0:01:20]} h5 {[%emt 0:00:59]} 25. Be2 {[%emt 0:
02:38]} Nh7 {[%emt 0:03:18]} 26. h4 {[%emt 0:04:40]} Nf8 {[%emt 0:01:18]} 27.
Qa4 {[%emt 0:02:06]} Ne6 {[%emt 0:01:30]} 28. Nf1 {[%emt 0:05:46]} d4 {[%emt 0:
01:16]} 29. g3 {[%emt 0:00:29]} dxe3 {[%emt 0:00:31]} 30. fxe3 {[%emt 0:02:18]}
Rxd1 {[%emt 0:00:36]} 31. Rxd1 {[%emt 0:00:08]} Rxd1 {[%emt 0:00:28]} 32. Qxd1
{[%emt 0:00:38]} Bb7 {[%emt 0:00:27]} 33. Bf3 {[%emt 0:01:33]} c5 {[%emt 0:00:
17]} 34. b3 {[%emt 0:00:57]} Qc7 {[%emt 0:00:28]} 35. Kf2 {[%emt 0:00:30]} Bxf3
{[%emt 0:00:21]} 36. Qxf3 {[%emt 0:00:08]} Qa5 {[%emt 0:00:07]} 37. a4 {
[%emt 0:00:38]} Qc3 {[%emt 0:00:45]} 38. Qd5 {[%emt 0:00:17]} Qc2+ {[%emt 0:00:
51]} 39. Kg1 {[%emt 0:01:54]} Kg7 {[%emt 0:00:29]} 40. Qe5+ {[%emt 0:02:43]}
Kh7 {[%emt 0:00:20]} 41. Qd5 {[%emt 0:30:08]} a5 {[%emt 0:30:50]} 42. Nh2 {
[%emt 0:00:00]} c4 {[%emt 0:00:00]} 43. bxc4 {[%emt 0:00:00]} Qxa4 {[%emt 0:00:
00]} 44. g4 {[%emt 0:00:00]} Qa3 {[%emt 0:00:00]} 45. Kf2 {[%emt 0:00:00]} Qc5
{[%emt 0:00:00]} 46. gxh5 {[%emt 0:00:00]} gxh5 {[%emt 0:00:00]} 47. Qd1 {
[%emt 0:01:29]} Kh6 {[%emt 0:00:00]} 48. Qa1 {[%emt 0:01:07]} Qf5+ {[%emt 0:01:
18]} 49. Nf3 {[%emt 0:00:14]} f6 {[%emt 0:00:50]} 50. Ke2 {[%emt 0:02:48]} Kg6
{[%emt 0:02:01]} 51. Qa4 {[%emt 0:00:20]} Ng7 {[%emt 0:00:58]} 52. Nd4 {
[%emt 0:01:23]} Qc5 {[%emt 0:00:24]} 53. Qc2+ {[%emt 0:00:11]} Kh6 {[%emt 0:00:
23]} 54. Nb3 {[%emt 0:00:31]} Qc7 {[%emt 0:00:25]} 55. c5 {[%emt 0:00:40]} Qc6
{[%emt 0:00:38]} 56. Nxa5 {[%emt 0:00:29]} Qb5+ {[%emt 0:00:02]} 57. Nc4 {
[%emt 0:00:05]} Qxc5 {[%emt 0:00:05]} 58. Qe4 {[%emt 0:00:27]} Qf5 {[%emt 0:00:
45]} 59. Nd2 {[%emt 0:00:56]} Qg4+ {[%emt 0:00:18]} 60. Qxg4 {[%emt 0:00:38]}
hxg4 {[%emt 0:00:01]} 61. Ne4 {[%emt 0:00:27]} f5 {[%emt 0:00:25]} 62. Ng3 {
[%emt 0:00:14]} Kg6 {[%emt 0:00:01]} 63. Kf2 {[%emt 0:00:17]} Ne8 {[%emt 0:01:
55]} 64. Ne2 {[%emt 0:00:28]} Nf6 {[%emt 0:00:29]} 65. Ng3 {[%emt 0:00:13]} Nd5
{[%emt 0:01:06]} 66. e4 {[%emt 0:00:34]} 1/2-1/2

[Event "23rd ETCC Women 2021"]
[Site "Catez"]
[Date "2021.11.20"]
[Round "8.14"]
[White "Mammadova, Gulnar"]
[Black "Gara, Ticia"]
[Result "1/2-1/2"]
[ECO "B15"]
[WhiteElo "2395"]
[BlackElo "2331"]
[Annotator "NA"]
[PlyCount "110"]
[EventDate "2021.11.08"]
[EventType "team-tourn"]
[EventCountry "SLO"]
[SourceTitle "playchess.com"]
[Source "ChessBase"]
[SourceQuality "1"]
[WhiteTeam "Azerbaijan"]
[BlackTeam "Hungary"]
[WhiteTeamCountry "AZE"]
[BlackTeamCountry "HUN"]
[TimeControl "40/5400+30:1800+30"]

1. e4 {[%emt 0:00:04]} c6 {[%emt 0:00:05]} 2. d4 {[%emt 0:00:20]} d5 {[%emt 0:
00:04]} 3. Nc3 {[%emt 0:00:16]} dxe4 {[%emt 0:00:05]} 4. Nxe4 {[%emt 0:00:04]}
Nf6 {[%emt 0:00:05]} 5. Nxf6+ {[%emt 0:00:21]} exf6 {[%emt 0:00:05]} 6. c3 {
[%emt 0:00:06]} Bd6 {[%emt 0:00:17]} 7. Bd3 {[%emt 0:00:15]} O-O {[%emt 0:00:
24]} 8. Qc2 {[%emt 0:00:09]} Re8+ {[%emt 0:00:29]} 9. Ne2 {[%emt 0:00:06]} h5 {
[%emt 0:00:17]} 10. Be3 {[%emt 0:00:16]} Nd7 {[%emt 0:00:45]} 11. O-O-O {
[%emt 0:00:25]} Nf8 {[%emt 0:00:22]} 12. Kb1 {[%emt 0:00:15]} Be6 {[%emt 0:00:
52]} 13. c4 {[%emt 0:00:27]} Rc8 {[%emt 0:00:54]} 14. h3 {[%emt 0:06:31]} b5 {
[%emt 0:01:36]} 15. c5 {[%emt 0:01:59]} Bb8 {[%emt 0:00:48]} 16. Be4 {[%emt 0:
06:50]} Bd5 {[%emt 0:06:27]} 17. Bxd5 {[%emt 0:03:23]} Qxd5 {[%emt 0:00:24]}
18. g4 {[%emt 0:02:07]} h4 {[%emt 0:06:43]} 19. Nc3 {[%emt 0:03:19]} Qf3 {
[%emt 0:04:50]} 20. Qe2 {[%emt 0:07:17]} Qxe2 {[%emt 0:03:27]} 21. Nxe2 {
[%emt 0:00:08]} Ne6 {[%emt 0:07:02]} 22. d5 {[%emt 0:05:58]} Nxc5 {[%emt 0:27:
33]} 23. Bxc5 {[%emt 0:00:40]} Rxe2 {[%emt 0:00:06]} 24. d6 {[%emt 0:00:57]}
Rd8 {[%emt 0:01:22]} 25. Rd3 {[%emt 0:03:37]} Re5 {[%emt 0:13:43]} 26. b4 {
[%emt 0:09:45]} Rd7 {[%emt 0:02:12]} 27. Rhd1 {[%emt 0:08:06]} Kf8 {[%emt 0:01:
10]} 28. f4 {[%emt 0:02:50]} Re4 {[%emt 0:02:08]} 29. f5 {[%emt 0:06:29]} Ke8 {
[%emt 0:03:04]} 30. Kb2 {[%emt 0:05:16]} Kd8 {[%emt 0:01:14]} 31. Kb3 {[%emt 0:
00:35]} Re2 {[%emt 0:03:21]} 32. Rg1 {[%emt 0:02:51]} Re5 {[%emt 0:02:41]} 33.
Rgd1 {[%emt 0:08:45]} Re2 {[%emt 0:01:55]} 34. a4 {[%emt 0:06:06]} Kc8 {
[%emt 0:02:02]} 35. Rg1 {[%emt 0:02:22]} Re5 {[%emt 0:01:52]} 36. Rgd1 {
[%emt 0:03:35]} Re2 {[%emt 0:00:23]} 37. Rg1 {[%emt 0:00:23]} Re5 {[%emt 0:00:
05]} 38. Rgd1 {[%emt 0:00:48]} Re2 {[%emt 0:00:37]} 39. Rg1 {[%emt 0:00:24]}
Kb7 {[%emt 0:05:30]} 40. a5 {[%emt 0:03:17]} Re5 {[%emt 0:01:49]} 41. Rgd1 {
[%emt 0:31:15]} Rd5 {[%emt 0:12:16]} 42. Rxd5 {[%emt 0:00:00]} cxd5 {[%emt 0:
00:22]} 43. Rxd5 {[%emt 0:00:00]} Kc6 {[%emt 0:00:20]} 44. Rd2 {[%emt 0:00:00]}
Bxd6 {[%emt 0:00:33]} 45. Bf2 {[%emt 0:00:00]} a6 {[%emt 0:08:00]} 46. Bxh4 {
[%emt 0:00:00]} Re7 {[%emt 0:00:58]} 47. Bf2 {[%emt 0:00:00]} Re4 {[%emt 0:00:
40]} 48. Rc2+ {[%emt 0:00:00]} Kd7 {[%emt 0:01:57]} 49. Bc5 {[%emt 0:00:00]}
Bxc5 {[%emt 0:01:06]} 50. Rxc5 {[%emt 0:00:00]} Re3+ {[%emt 0:02:10]} 51. Rc3 {
[%emt 0:00:00]} Re4 {[%emt 0:00:24]} 52. Rd3+ {[%emt 0:00:00]} Kc7 {[%emt 0:00:
17]} 53. Rc3+ {[%emt 0:00:00]} Kd7 {[%emt 0:00:02]} 54. Rd3+ {[%emt 0:00:00]}
Kc7 {[%emt 0:00:08]} 55. Rc3+ {[%emt 0:00:00]} Kd7 {[%emt 0:00:21]} 1/2-1/2

[Event "23rd ETCC Women 2021"]
[Site "Catez"]
[Date "2021.11.20"]
[Round "8.15"]
[White "Gaal, Zsoka"]
[Black "Balajayeva, Khanim"]
[Result "1-0"]
[ECO "E17"]
[WhiteElo "2336"]
[BlackElo "2369"]
[Annotator "NA"]
[PlyCount "125"]
[EventDate "2021.11.08"]
[EventType "team-tourn"]
[EventCountry "SLO"]
[SourceTitle "playchess.com"]
[Source "ChessBase"]
[SourceQuality "1"]
[WhiteTeam "Hungary"]
[BlackTeam "Azerbaijan"]
[WhiteTeamCountry "HUN"]
[BlackTeamCountry "AZE"]
[TimeControl "40/5400+30:1800+30"]

1. Nf3 {[%emt 0:00:08]} Nf6 {[%emt 0:00:06]} 2. g3 {[%emt 0:00:06]} b6 {
[%emt 0:00:02]} 3. Bg2 {[%emt 0:00:07]} Bb7 {[%emt 0:00:03]} 4. O-O {[%emt 0:
00:08]} e6 {[%emt 0:00:02]} 5. c4 {[%emt 0:00:24]} Be7 {[%emt 0:00:04]} 6. Nc3
{[%emt 0:00:19]} O-O {[%emt 0:00:19]} 7. Re1 {[%emt 0:00:29]} d5 {[%emt 0:00:
40]} 8. cxd5 {[%emt 0:00:53]} exd5 {[%emt 0:00:03]} 9. d4 {[%emt 0:00:10]} Nbd7
{[%emt 0:00:45]} 10. Bf4 {[%emt 0:01:10]} c5 {[%emt 0:00:38]} 11. dxc5 {
[%emt 0:00:52]} Nxc5 {[%emt 0:05:56]} 12. Nd4 {[%emt 0:03:08]} Nfe4 {[%emt 0:
13:24]} 13. Rc1 {[%emt 0:00:22]} Bf6 {[%emt 0:00:10]} 14. Be3 {[%emt 0:14:19]}
Qd7 {[%emt 0:08:57]} 15. Nb1 {[%emt 0:16:13]} Rac8 {[%emt 0:10:16]} 16. Nd2 {
[%emt 0:07:24]} Rfe8 {[%emt 0:04:48]} 17. N2f3 {[%emt 0:00:46]} h6 {[%emt 0:11:
48]} 18. Rc2 {[%emt 0:02:29]} Nd6 {[%emt 0:03:00]} 19. Bc1 {[%emt 0:15:42]}
Nce4 {[%emt 0:04:58]} 20. e3 {[%emt 0:01:31]} Rc5 {[%emt 0:08:13]} 21. Bf1 {
[%emt 0:06:18]} Rec8 {[%emt 0:00:37]} 22. Bd3 {[%emt 0:02:18]} h5 {[%emt 0:00:
48]} 23. Qe2 {[%emt 0:04:29]} g5 {[%emt 0:07:51]} 24. Rd1 {[%emt 0:01:09]} Re8
{[%emt 0:04:52]} 25. Qf1 {[%emt 0:08:15]} h4 {[%emt 0:01:30]} 26. b3 {[%emt 0:
02:26]} hxg3 {[%emt 0:02:50]} 27. hxg3 {[%emt 0:00:10]} Qc8 {[%emt 0:02:19]}
28. Ba3 {[%emt 0:01:31]} Rxc2 {[%emt 0:00:51]} 29. Nxc2 {[%emt 0:02:16]} Nf5 {
[%emt 0:03:37]} 30. Ncd4 {[%emt 0:02:43]} Nxd4 {[%emt 0:01:41]} 31. Nxd4 {
[%emt 0:00:12]} Bxd4 {[%emt 0:01:39]} 32. exd4 {[%emt 0:00:02]} Qc3 {[%emt 0:
00:15]} 33. Bb5 {[%emt 0:05:12]} Re6 {[%emt 0:01:00]} 34. Qd3 {[%emt 0:01:00]}
Bc6 {[%emt 0:01:04]} 35. Ba6 {[%emt 0:01:02]} Rf6 {[%emt 0:01:05]} 36. Qxc3 {
[%emt 0:00:18]} Nxc3 {[%emt 0:00:03]} 37. Rc1 {[%emt 0:00:41]} Ne4 {[%emt 0:01:
21]} 38. Rc2 {[%emt 0:01:10]} Bd7 {[%emt 0:00:38]} 39. Bb7 {[%emt 0:00:49]} Be6
{[%emt 0:00:21]} 40. Kg2 {[%emt 0:01:01]} g4 {[%emt 0:00:04]} 41. Bc1 {[%emt 0:
02:14]} Rf3 {[%emt 0:03:22]} 42. Ba6 {[%emt 0:09:57]} Bf5 {[%emt 0:07:04]} 43.
Re2 {[%emt 0:05:30]} Nc3 {[%emt 0:02:11]} 44. Re3 {[%emt 0:02:50]} Nxa2 {
[%emt 0:15:39]} 45. Bd2 {[%emt 0:00:06]} Rxe3 {[%emt 0:00:03]} 46. fxe3 {
[%emt 0:00:08]} Be4+ {[%emt 0:00:02]} 47. Kf2 {[%emt 0:00:30]} f5 {[%emt 0:00:
04]} 48. b4 {[%emt 0:05:22]} Kf7 {[%emt 0:00:06]} 49. Ke1 {[%emt 0:00:59]} Ke6
{[%emt 0:00:25]} 50. Kd1 {[%emt 0:00:09]} Kd6 {[%emt 0:00:47]} 51. Bb5 {
[%emt 0:00:06]} a6 {[%emt 0:04:14]} 52. Ba4 {[%emt 0:01:13]} a5 {[%emt 0:01:40]
} 53. bxa5 {[%emt 0:00:11]} bxa5 {[%emt 0:00:02]} 54. Bxa5 {[%emt 0:00:17]} Bb1
{[%emt 0:00:02]} 55. Bd2 {[%emt 0:00:55]} Bd3 {[%emt 0:01:33]} 56. Bb3 {
[%emt 0:00:32]} Bc4 {[%emt 0:01:23]} 57. Kc2 {[%emt 0:00:34]} Ke6 {[%emt 0:00:
14]} 58. Kb2 {[%emt 0:04:05]} Bd3 {[%emt 0:01:03]} 59. Bxa2 {[%emt 0:00:14]}
Be4 {[%emt 0:00:04]} 60. Bb1 {[%emt 0:00:35]} Bf3 {[%emt 0:00:03]} 61. Ka3 {
[%emt 0:00:20]} Be2 {[%emt 0:00:25]} 62. Kb4 {[%emt 0:00:13]} Kd6 {[%emt 0:00:
13]} 63. Bxf5 {[%emt 0:00:09]} 1-0